bitfinex/quotes_ETHUSD_20251116
["timestamp","ask_amount","ask_price","bid_price","bid_amount"]
[1763318643259,1.00172885,3066.3,3065.5,0.405504]
[1763318643457,1.00172885,3066.3,3065.4,0.472]
[1763318643458,1.00172885,3066.2,3065.4,0.472]
[1763318643755,1.15341289,3066.5,3065.4,0.472]
[1763318643756,1.00172885,3066.1,3065.4,0.472]
[1763318643951,1.00172885,3066.0,3065.1,0.0949]
[1763318644156,1.00172885,3066.0,3065.1,0.001]
[1763318644157,1.15341289,3065.8,3065.1,0.001]
[1763318644463,2.88353223,3065.4,3065.1,0.001]
[1763318644617,1.16816551,3065.2,3065.1,0.001]
[1763318644812,1.00172885,3065.2,3065.1,0.001]
[1763318645053,3.18494819,3065.2,3065.1,0.001]
[1763318645558,1.45482885,3065.2,3065.1,0.001]
[1763318645856,1.45482885,3065.2,3061.4,0.6667551]
[1763318645857,1.45482885,3065.2,3063.3,0.1871]
[1763318646039,1.16380175,3064.6,3063.3,0.1871]
[1763318646251,1.00172885,3064.5,3063.3,0.6591]
[1763318646442,1.00172885,3064.4,3063.3,0.6591]
[1763318646636,0.1864,3064.7,3063.3,0.6591]
[1763318646637,1.00172885,3064.3,3063.4,0.472]
[1763318646843,0.30311536,3064.2,3063.4,0.472]
[1763318647085,1.00126979,3064.8,3064.2,0.1068]
[1763318647372,2.82020175,3065.9,3064.3,0.405504]
[1763318647580,2.82020175,3065.9,3064.3,0.877504]
[1763318647581,1.00085047,3065.8,3064.3,0.877504]
[1763318647866,1.00085047,3065.7,3064.3,0.877504]
[1763318648052,1.00085047,3065.6,3064.3,0.405504]
[1763318648253,0.4531,3065.8,3064.2,0.1068]
[1763318648254,1.00085047,3065.5,3064.5,0.405504]
[1763318648457,0.30291036,3065.4,3064.1,0.1871]
[1763318648772,2.16465222,3065.3,3063.4,0.472]
[1763318648973,1.16380175,3065.1,3063.4,0.472]
[1763318649276,1.00085047,3065.0,3063.5,0.405504]
[1763318649492,0.30291036,3064.9,3063.4,0.472]
[1763318649635,0.30291036,3064.8,3064.7,0.001]
[1763318649827,0.30291036,3064.9,3064.7,0.001]
[1763318650032,1.00085047,3065.0,3064.7,0.001]
[1763318650272,0.30291036,3064.9,3064.7,0.001]
[1763318650836,0.4531,3065.5,3064.7,0.001]
[1763318650837,0.30291036,3065.2,3064.7,0.001]
[1763318651047,0.30291036,3065.3,3064.7,0.001]
[1763318651254,0.30291036,3065.2,3064.7,0.001]
[1763318651455,0.4531,3065.4,3064.7,0.001]
[1763318651689,0.30291036,3065.3,3064.7,0.001]
[1763318652762,0.69794011,3065.6,3064.7,0.001]
[1763318653086,0.69794011,3065.8,3064.7,0.473]
[1763318653381,0.3011381,3065.7,3064.7,0.473]
[1763318653570,0.3011381,3065.7,3064.8,0.405504]
[1763318653773,1.472,3065.9,3065.6,0.1871]
[1763318653978,1.472,3065.9,3065.0,0.405504]
[1763318653979,1.472,3065.9,3065.3,0.592604]
[1763318654285,1.472,3065.9,3064.8,0.405504]
[1763318654286,1.6584,3065.9,3064.8,0.405504]
[1763318654486,0.30153388,3065.8,3064.8,0.405504]
[1763318655183,0.3015751,3065.8,3064.8,0.405504]
[1763318655348,1.472,3065.9,3065.0,0.405504]
[1763318655757,1.472,3065.9,3065.1,0.1801]
[1763318655960,1.6696,3065.9,3065.1,0.1801]
[1763318656578,1.6696,3065.9,3064.7,0.406504]
[1763318656579,0.48,3065.8,3064.7,0.406504]
[1763318658005,1.472,3065.9,3064.9,0.405504]
[1763318658376,1.472,3065.9,3065.1,0.405504]
[1763318658777,1.472,3065.9,3065.2,0.1801]
[1763318660202,1.472,3065.9,3065.3,0.888204]
[1763318660569,1.472,3065.9,3065.5,0.405504]
[1763318660768,1.472,3065.9,3065.6,0.405504]
[1763318661170,1.472,3065.9,3065.6,0.883704]
[1763318662379,1.6677,3065.9,3065.2,0.1801]
[1763318662874,1.6677,3065.9,3064.7,0.001]
[1763318663280,2.1555,3065.9,3064.7,0.001]
[1763318663820,0.4878,3065.8,3064.6,0.4292]
[1763318664022,1.6677,3065.9,3064.6,0.4292]
[1763318664231,1.6677,3065.9,3064.7,0.405504]
[1763318664402,1.472,3065.9,3064.7,0.405504]
[1763318664606,1.6677,3065.9,3064.2,0.405504]
[1763318665297,1.500274,3065.9,3064.2,0.405504]
[1763318665623,1.304574,3065.9,3064.2,0.405504]
[1763318665786,1.304574,3065.9,3064.4,0.405504]
[1763318666186,1.304574,3065.9,3065.8,0.13]
[1763318668235,1.304574,3065.9,3065.4,0.600804]
[1763318668547,1.304574,3065.9,3065.0,0.6735]
[1763318668839,1.304574,3065.9,3065.4,0.405504]
[1763318669038,1.304574,3065.9,3065.0,0.1953]
[1763318669039,1.988074,3065.9,3065.0,0.1953]
[1763318669192,1.988074,3065.9,3064.5,0.4792]
[1763318669193,0.4878,3065.8,3064.5,0.4792]
[1763318669597,0.4878,3065.8,3064.6,0.405504]
[1763318669932,0.4878,3065.8,3064.6,0.4782]
[1763318670141,0.4878,3065.8,3064.7,0.405504]
[1763318670292,0.4878,3065.8,3064.6,0.4782]
[1763318670633,0.4878,3065.8,3064.7,0.405504]
[1763318670818,1.500274,3065.9,3064.7,0.405504]
[1763318671003,1.500274,3065.9,3064.5,0.001]
[1763318671004,0.1977,3065.9,3064.8,0.4782]
[1763318671205,0.1977,3065.9,3064.9,0.405504]
[1763318671612,0.1977,3065.9,3064.8,0.4782]
[1763318671613,0.002,3065.9,3065.8,0.13]
[1763318672627,0.002,3065.9,3065.6,0.1953]
[1763318675549,0.002,3065.9,3065.2,0.600804]
[1763318675750,0.002,3065.9,3065.2,1.079004]
[1763318676725,0.002,3065.9,3065.4,0.405504]
[1763318677139,0.002,3065.9,3065.5,0.4782]
[1763318680067,0.002,3065.9,3065.8,0.900704]
[1763318680551,0.002,3065.9,3065.8,1.378904]
[1763318684936,0.002,3066.3,3065.8,1.378904]
[1763318684937,0.002,3066.3,3066.2,8.50993478]
[1763318685260,0.002,3066.3,3066.2,9.85612826]
[1763318685436,0.002,3066.3,3066.2,10.33432826]
[1763318687233,0.002,3066.3,3066.2,0.405504]
[1763318687436,0.002,3066.3,3066.2,8.10443078]
[1763318688021,0.002,3066.3,3066.2,8.50993478]
[1763318688270,0.002,3066.3,3066.2,9.00513478]
[1763318688653,0.002,3066.3,3066.2,9.48333478]
[1763318688961,0.002,3066.3,3066.2,10.43166826]
[1763318690938,0.002,3066.3,3066.2,9.95346826]
[1763318691345,0.002,3066.3,3066.2,10.42726826]
[1763318691578,0.002,3066.3,3066.2,9.95346826]
[1763318691756,0.002,3066.3,3066.2,10.42726826]
[1763318692278,0.4898,3067.1,3066.3,0.405504]
[1763318692473,0.4898,3067.1,3066.6,8.10443078]
[1763318693562,0.4717,3066.7,3066.6,8.10443078]
[1763318693985,0.1874,3066.9,3066.6,8.10443078]
[1763318694844,0.4717,3066.7,3066.6,8.10443078]
[1763318695355,0.947,3066.7,3066.6,8.10443078]
[1763318696279,0.947,3066.7,3066.3,1.37735215]
[1763318697747,0.0312,3066.4,3066.2,8.10443078]
[1763318698488,0.4673,3066.3,3065.9,0.405504]
[1763318698692,0.4673,3066.3,3066.0,8.10443078]
[1763318699378,0.4753,3066.8,3066.0,8.10443078]
[1763318699896,0.1874,3066.9,3066.4,8.10443078]
[1763318700097,0.6627,3066.9,3066.4,8.10443078]
[1763318700249,0.6627,3066.9,3066.4,8.91487386]
[1763318700612,1.74570262,3068.1,3066.4,8.91487386]
[1763318700613,0.1874,3068.2,3067.1,0.405504]
[1763318700890,1.47,3068.3,3068.1,8.10443078]
[1763318701066,1.9453,3068.3,3067.7,8.10443078]
[1763318701268,1.47,3068.3,3067.7,8.10443078]
[1763318701670,0.4753,3068.2,3067.7,8.10443078]
[1763318702079,0.4753,3068.2,3066.4,0.81044308]
[1763318702080,0.5102,3067.8,3066.8,8.10443078]
[1763318702468,0.3733,3066.9,3066.0,8.10443078]
[1763318702690,0.4689,3066.6,3066.0,8.10443078]
[1763318702866,0.4689,3066.6,3066.0,8.91487386]
[1763318703075,0.9442,3066.6,3066.0,8.10443078]
[1763318703269,0.1887,3066.1,3065.2,0.1963]
[1763318703482,0.1874,3065.8,3065.2,0.1963]
[1763318704123,0.4717,3065.6,3065.2,0.001]
[1763318704261,0.1874,3065.8,3065.2,0.001]
[1763318704466,0.4717,3065.6,3065.2,0.001]
[1763318704697,0.947,3065.6,3065.2,0.001]
[1763318705000,0.1874,3065.8,3065.2,0.001]
[1763318705232,0.4717,3065.6,3065.2,0.001]
[1763318705583,0.947,3065.6,3065.2,0.001]
[1763318706436,1.24931592,3065.6,3065.2,0.001]
[1763318706732,0.1941,3065.3,3065.2,0.001]
[1763318707232,0.6694,3065.3,3065.2,0.001]
[1763318707585,0.49616336,3065.3,3065.2,0.001]
[1763318707787,0.97146162,3065.3,3065.2,0.001]
[1763318708087,0.97146162,3065.3,3063.7,2.74339127]
[1763318708392,0.2374,3065.8,3063.7,2.74339127]
[1763318708393,0.469,3065.0,3063.7,2.74339127]
[1763318708793,0.9443,3065.0,3063.7,2.74339127]
[1763318709094,0.9443,3065.0,3063.6,8.10443078]
[1763318709301,0.9443,3065.0,3063.4,0.189]
[1763318709485,0.9443,3065.0,3062.0,0.189]
[1763318709486,1.24506841,3065.0,3063.1,0.0503]
[1763318709689,1.65638496,3064.9,3063.3,8.10443078]
[1763318709941,0.6627,3064.9,3063.4,1.94418388]
[1763318710089,0.6627,3064.9,3063.8,1.5392448]
[1763318710301,0.6591,3063.5,3062.1,0.189]
[1763318710530,0.0467,3063.2,3061.5,0.189]
[1763318710711,0.0467,3063.2,3061.7,8.10443078]
[1763318710923,0.4753,3063.1,3061.8,0.81044308]
[1763318711134,0.4753,3063.1,3061.2,8.29343078]
[1763318711421,1.31759366,3063.1,3061.2,0.189]
[1763318711627,0.84229366,3063.0,3061.2,0.189]
[1763318711823,0.4753,3063.0,3061.2,0.189]
[1763318712025,0.4753,3062.9,3061.0,0.00424716]
[1763318712230,0.1874,3061.3,3061.0,0.00424716]
[1763318712790,1.30626032,3061.2,3059.4,0.189]
[1763318712925,0.4753,3061.2,3059.4,0.189]
[1763318713122,0.4753,3061.1,3059.4,0.189]
[1763318713365,0.4753,3061.2,3059.5,0.4738]
[1763318713578,0.4753,3061.2,3059.6,0.87672308]
[1763318713759,0.4753,3061.2,3059.5,0.4738]
[1763318713924,0.4753,3061.2,3059.0,0.189]
[1763318714269,0.05,3060.7,3058.1,0.4738]
[1763318714563,0.1467,3059.1,3057.5,0.189]
[1763318714768,0.1467,3059.1,3057.5,2.20854737]
[1763318714973,0.1467,3060.0,3058.5,1.1337408]
[1763318715137,0.4753,3059.7,3057.5,1.07480657]
[1763318715337,0.4753,3059.7,3058.1,8.10443078]
[1763318715560,0.4753,3059.7,3057.6,0.4238]
[1763318715561,0.1467,3060.0,3058.8,0.405504]
[1763318715735,0.1467,3060.0,3058.7,0.405504]
[1763318715938,0.4655,3060.8,3058.4,0.405504]
[1763318716136,0.4655,3060.8,3057.7,3.27035222]
[1763318716137,0.1874,3061.3,3059.5,0.405504]
[1763318716338,0.05,3060.5,3058.2,0.1845]
[1763318716667,0.05,3060.5,3059.0,8.10443078]
[1763318716668,1.472,3060.5,3059.0,8.10443078]
[1763318716829,1.472,3060.5,3058.2,2.14713388]
[1763318716830,0.4655,3060.4,3058.4,0.405504]
[1763318717568,0.4655,3060.4,3058.6,0.405504]
[1763318717769,0.4655,3060.4,3058.6,0.892904]
[1763318717921,0.4655,3060.4,3058.6,0.405504]
[1763318718263,0.2,3060.7,3059.0,8.10443078]
[1763318718574,0.1874,3061.3,3060.1,0.405504]
[1763318719066,0.6122,3062.0,3060.2,1.5392448]
[1763318719438,0.4655,3061.9,3060.4,0.405504]
[1763318719649,0.2,3062.3,3060.7,7.27580439]
[1763318719856,0.2,3062.3,3060.8,2.79477564]
[1763318720379,0.2,3062.3,3061.0,0.405504]
[1763318720767,0.2,3062.3,3060.5,7.27580439]
[1763318720768,0.4655,3062.2,3060.4,0.9529]
[1763318720970,0.4655,3062.2,3060.5,0.4874]
[1763318721288,0.1874,3062.5,3060.6,0.405504]
[1763318721788,0.1874,3062.5,3060.8,0.405504]
[1763318721998,0.4602,3062.4,3060.4,0.4793]
[1763318722464,0.4602,3062.4,3060.0,0.6685]
[1763318722671,0.05,3062.2,3060.0,0.6685]
[1763318723183,0.05,3061.7,3060.8,0.001]
[1763318723386,0.1816,3060.9,3059.2,0.1892]
[1763318724659,0.4602,3060.8,3060.1,0.001]
[1763318724986,0.1816,3061.2,3060.1,0.001]
[1763318725188,0.4602,3061.1,3060.1,0.001]
[1763318725542,0.1816,3061.3,3060.1,0.001]
[1763318725787,0.1816,3061.6,3060.1,0.001]
[1763318725946,0.1816,3061.9,3060.3,0.405504]
[1763318726142,0.1816,3061.9,3060.4,0.77743084]
[1763318726350,0.6418,3061.9,3060.3,0.405504]
[1763318726855,0.4602,3061.8,3060.1,0.001]
[1763318728974,0.4602,3061.8,3060.2,0.093]
[1763318729175,0.4602,3061.8,3060.1,0.001]
[1763318730224,0.4602,3061.8,3060.2,0.405504]
[1763318730711,0.4602,3061.8,3060.4,0.405504]
[1763318730912,0.4602,3061.8,3060.1,0.094]
[1763318731287,0.1816,3061.9,3060.2,0.405504]
[1763318731543,0.1816,3061.9,3060.1,0.094]
[1763318731544,1.9322,3062.9,3061.1,0.405504]
[1763318731818,1.9322,3062.9,3061.7,0.405504]
[1763318731819,1.472,3062.9,3061.7,0.405504]
[1763318732122,1.472,3062.9,3061.7,1.5392448]
[1763318732272,1.472,3062.9,3061.9,0.405504]
[1763318732676,1.472,3062.9,3062.1,0.405504]
[1763318733301,1.472,3062.9,3062.3,0.405504]
[1763318733502,1.472,3062.9,3062.5,0.405504]
[1763318733699,1.472,3062.9,3062.7,0.405504]
[1763318734113,1.472,3062.9,3062.3,0.093]
[1763318734311,1.472,3062.9,3062.3,0.498504]
[1763318734610,1.472,3062.9,3062.1,0.405504]
[1763318737927,0.4602,3062.6,3061.0,0.405504]
[1763318738124,0.4602,3062.6,3060.9,0.093]
[1763318740266,1.83011008,3062.5,3060.9,0.093]
[1763318740560,2.29031008,3062.4,3060.9,0.093]
[1763318740851,0.98232078,3062.3,3060.9,0.093]
[1763318741051,0.68398528,3062.2,3060.9,0.093]
[1763318741231,1.14418528,3062.2,3060.9,0.093]
[1763318741575,0.4602,3062.1,3060.9,0.093]
[1763318744045,0.68398528,3062.3,3061.1,0.405504]
[1763318744289,0.8477893,3063.1,3061.9,0.405504]
[1763318744452,1.16380175,3063.3,3062.0,0.89158096]
[1763318744453,0.68825176,3063.2,3062.0,0.89158096]
[1763318744654,0.4602,3063.3,3062.0,0.89158096]
[1763318745809,1.14845761,3063.3,3062.0,0.89158096]
[1763318746106,0.68825761,3063.2,3061.3,0.405504]
[1763318746243,0.68825761,3063.1,3060.6,0.093]
[1763318746450,1.84718672,3063.0,3060.9,1.2267408]
[1763318746770,1.84718672,3062.9,3061.0,0.093]
[1763318746945,1.14845761,3062.8,3061.0,0.093]
[1763318747145,1.14845761,3062.8,3061.1,0.405504]
[1763318747146,0.68825761,3062.7,3061.1,0.405504]
[1763318747448,0.68825761,3062.6,3061.0,0.98300464]
[1763318747671,0.68825761,3062.5,3061.0,0.98300464]
[1763318747989,1.14845761,3062.5,3061.0,0.98300464]
[1763318748193,1.14845761,3062.4,3061.0,0.98300464]
[1763318748389,0.4602,3062.4,3061.1,0.22097454]
[1763318748688,0.86032201,3062.7,3061.2,0.405504]
[1763318748852,0.68943345,3062.6,3061.4,0.405504]
[1763318749046,1.14963345,3062.7,3061.4,0.405504]
[1763318749243,0.68943345,3062.6,3061.4,0.405504]
[1763318749492,1.14963345,3062.6,3061.5,0.89158096]
[1763318749686,1.14963345,3062.6,3061.4,0.405504]
[1763318749687,0.4602,3062.6,3061.4,0.405504]
[1763318749894,0.68943345,3062.5,3061.8,8.51030559]
[1763318750190,2.20590262,3063.2,3061.8,8.51030559]
[1763318750191,0.86032201,3063.2,3061.8,8.51030559]
[1763318750373,0.4602,3062.9,3061.8,8.51030559]
[1763318750583,0.4602,3062.9,3061.9,0.85103056]
[1763318750897,1.14889621,3062.9,3061.9,0.85103056]
[1763318751191,0.68869621,3062.8,3061.3,8.91580959]
[1763318751397,0.68869621,3062.7,3061.3,8.91580959]
[1763318751695,1.18799621,3062.7,3061.3,8.91580959]
[1763318751891,1.18799621,3062.7,3061.3,0.55557992]
[1763318751892,0.86032201,3062.5,3061.3,0.55557992]
[1763318752065,0.68869621,3062.4,3061.1,0.093]
[1763318752264,0.68869621,3062.5,3061.2,8.51030559]
[1763318752464,0.68869621,3062.5,3061.3,0.405504]
[1763318753504,0.4993,3062.6,3061.4,0.093]
[1763318754355,0.4993,3062.6,3061.3,1.5392448]
[1763318754591,0.4993,3062.6,3061.4,1.00495504]
[1763318756087,1.34540175,3063.4,3061.4,1.00495504]
[1763318756088,0.68869621,3063.0,3062.3,0.405504]
[1763318756268,0.6816,3063.8,3062.5,0.405504]
[1763318756799,0.4993,3063.7,3061.5,0.86032201]
[1763318756964,1.48359519,3063.7,3061.7,0.093]
[1763318757168,0.68639586,3063.6,3062.1,0.405504]
[1763318757381,0.68639586,3063.5,3062.1,0.405504]
[1763318757585,1.18569586,3063.5,3062.1,0.405504]
[1763318757915,1.04262201,3063.8,3062.1,0.405504]
[1763318757916,0.4993,3063.4,3062.1,0.405504]
[1763318758116,0.4993,3063.4,3062.2,0.89158096]
[1763318758288,0.4993,3063.4,3061.8,0.405504]
[1763318758929,0.4993,3063.4,3061.7,0.093]
[1763318758930,1.18569586,3063.4,3061.9,0.093]
[1763318759112,0.4993,3063.4,3061.9,0.093]
[1763318759726,0.4993,3063.4,3062.0,0.405504]
[1763318760498,0.002,3063.4,3062.7,0.405504]
[1763318760698,0.002,3063.4,3062.8,0.89158096]
[1763318761121,0.002,3063.4,3062.1,8.51030559]
[1763318761122,0.002,3063.4,3062.7,0.498504]
[1763318761594,0.002,3063.4,3062.7,1.6322448]
[1763318761997,0.002,3063.4,3062.8,0.498504]
[1763318762537,0.002,3063.4,3063.2,0.405504]
[1763318763132,0.002,3063.4,3063.3,0.093]
[1763318763297,0.002,3063.4,3063.3,0.99388096]
[1763318764333,0.002,3063.4,3063.3,1.39938496]
[1763318765660,0.002,3063.4,3063.3,0.90088096]
[1763318766231,0.002,3063.4,3063.1,8.51030559]
[1763318767237,0.002,3063.4,3063.2,0.093]
[1763318767447,0.002,3063.4,3063.1,8.51030559]
[1763318767860,0.002,3063.4,3063.3,0.093]
[1763318768263,0.002,3063.4,3063.3,0.186]
[1763318768447,0.002,3063.4,3063.3,1.50168496]
[1763318769364,0.6809,3064.8,3063.4,0.405504]
[1763318769365,0.1816,3064.8,3063.4,0.405504]
[1763318769562,0.1816,3064.8,3063.8,8.51030559]
[1763318769768,0.1816,3064.8,3063.4,0.405504]
[1763318769937,0.4993,3064.7,3062.9,1.1337408]
[1763318770140,0.4993,3064.7,3063.0,0.96440464]
[1763318770827,0.4993,3064.7,3062.6,1.1337408]
[1763318771023,0.4993,3064.7,3062.5,8.51030559]
[1763318771254,0.4993,3064.7,3062.1,8.51030559]
[1763318771675,0.4993,3064.7,3062.2,1.1337408]
[1763318771676,1.18299798,3064.7,3062.2,1.1337408]
[1763318771865,0.4993,3064.7,3062.2,1.1337408]
[1763318772049,0.79613401,3064.6,3062.3,1.36990864]
[1763318772251,0.29722445,3064.5,3062.3,1.36990864]
[1763318772463,0.79652445,3064.5,3062.3,0.96440464]
[1763318772642,0.4993,3064.5,3062.3,0.96440464]
[1763318772826,0.4993,3064.4,3062.3,0.96440464]
[1763318773075,0.4993,3064.4,3062.4,0.20981454]
[1763318774930,0.1823,3062.5,3061.6,8.6968333]
[1763318775219,0.1823,3062.5,3059.9,4.1694672]
[1763318775220,0.1823,3061.7,3061.1,8.51030559]
[1763318775368,0.1823,3061.7,3060.8,8.51030559]
[1763318775566,0.4584,3062.1,3060.8,8.51030559]
[1763318775771,0.4584,3062.1,3060.9,0.186]
[1763318776006,0.4584,3062.1,3061.0,0.86963056]
[1763318776395,0.1823,3062.5,3061.3,8.51030559]
[1763318776396,0.6407,3062.5,3061.3,8.51030559]
[1763318776744,0.1823,3062.5,3061.3,8.51030559]
[1763318776925,0.1996,3062.6,3061.4,0.405504]
[1763318777070,0.1996,3062.6,3061.5,0.89158096]
[1763318777507,0.85462248,3063.9,3061.9,8.51030559]
[1763318777691,0.4584,3063.5,3062.4,8.51030559]
[1763318777893,0.4584,3063.5,3061.8,0.405504]
[1763318778108,0.4584,3063.5,3061.8,0.498504]
[1763318778267,0.4584,3063.5,3062.0,0.405504]
[1763318778665,0.4584,3063.5,3062.1,8.60330559]
[1763318778908,0.4584,3063.5,3062.2,0.90088096]
[1763318780010,0.002,3063.4,3062.8,8.51030559]
[1763318780217,0.002,3063.4,3062.3,9.00880959]
[1763318780546,0.002,3063.4,3062.3,8.51030559]
[1763318780547,0.1996,3062.9,3062.3,8.51030559]
[1763318780673,0.1996,3062.9,3062.3,9.45142425]
[1763318781015,0.1996,3062.9,3060.9,0.093]
[1763318781016,0.4584,3062.8,3061.5,9.40188655]
[1763318781180,0.1996,3062.9,3062.0,8.51030559]
[1763318783029,0.1996,3062.9,3061.5,0.89158096]
[1763318783030,0.4535,3062.8,3061.5,0.89158096]
[1763318783327,0.4535,3062.8,3061.1,0.093]
[1763318783481,0.4535,3062.8,3061.0,1.1337408]
[1763318784026,0.4535,3062.8,3061.1,0.405504]
[1763318784186,0.4535,3062.8,3060.9,8.60330559]
[1763318784383,0.4535,3062.8,3061.1,0.405504]
[1763318787401,0.4535,3062.8,3061.2,0.093]
[1763318788158,0.4535,3062.8,3061.1,0.405504]
[1763318788946,0.4535,3062.8,3061.3,0.405504]
[1763318789734,0.4535,3062.8,3061.2,8.60330559]
[1763318790054,0.4535,3062.8,3060.9,0.093]
[1763318790415,0.4535,3062.8,3060.3,8.51030559]
[1763318790416,0.4535,3062.8,3060.7,0.093]
[1763318791809,0.1956,3060.8,3060.2,0.093]
[1763318792010,0.1956,3060.8,3059.4,0.64594286]
[1763318792011,1.1337408,3060.4,3059.0,1.14046892]
[1763318792261,0.05,3060.1,3058.8,0.001]
[1763318792557,0.407,3060.0,3058.8,0.001]
[1763318792712,1.879,3060.0,3058.8,0.001]
[1763318792908,0.407,3059.9,3058.8,0.001]
[1763318793544,0.407,3060.3,3058.8,0.4698]
[1763318794839,0.1956,3060.8,3059.1,0.405504]
[1763318795030,0.1956,3061.4,3059.7,0.405504]
[1763318795545,0.1956,3061.4,3059.9,0.405504]
[1763318795759,0.1956,3061.4,3060.1,0.405504]
[1763318796120,0.1956,3061.4,3060.2,0.1801]
[1763318796965,0.1956,3061.4,3060.2,0.6489]
[1763318798043,0.1057,3060.3,3059.5,0.1801]
[1763318798417,0.1057,3060.3,3059.2,0.1801]
[1763318798646,0.1057,3060.3,3059.9,0.001]
[1763318799018,0.5127,3060.3,3059.9,0.001]
[1763318799226,0.1057,3060.3,3059.9,0.001]
[1763318799444,0.5127,3060.3,3059.9,0.001]
[1763318799666,0.1057,3060.3,3059.9,0.001]
[1763318800961,0.1057,3060.7,3059.9,0.001]
[1763318802521,0.5127,3060.7,3059.9,0.001]
[1763318804176,0.407,3060.6,3059.9,0.001]
[1763318804679,0.1057,3060.7,3059.9,0.001]
[1763318805981,0.2456,3061.4,3059.9,0.4698]
[1763318805982,0.407,3061.3,3059.9,0.4698]
[1763318806275,0.1956,3061.4,3059.9,0.4698]
[1763318806681,0.1956,3061.4,3059.9,0.001]
[1763318806682,0.6026,3061.4,3059.9,0.001]
[1763318806903,0.6026,3061.4,3060.0,0.4688]
[1763318807243,0.1956,3061.4,3060.0,0.4688]
[1763318807546,0.6026,3061.4,3060.0,0.4688]
[1763318808348,0.407,3061.3,3059.9,0.001]
[1763318810281,0.29566355,3061.2,3059.9,0.001]
[1763318810716,0.407,3061.1,3059.9,0.001]
[1763318811017,0.457,3061.1,3059.9,0.001]
[1763318811978,0.68115647,3061.1,3059.9,0.001]
[1763318812194,0.68115647,3061.3,3059.9,0.001]
[1763318812416,1.08815647,3061.3,3059.9,0.001]
[1763318812579,0.407,3061.2,3059.9,0.001]
[1763318812783,0.1956,3061.4,3060.0,0.4642]
[1763318813920,0.68115647,3061.7,3060.0,0.4642]
[1763318814223,0.407,3061.8,3060.0,0.4642]
[1763318816308,1.08815647,3061.8,3060.0,0.4642]
[1763318816513,1.08815647,3061.7,3060.0,0.4642]
[1763318816712,1.82917277,3061.6,3060.0,0.4642]
[1763318817022,1.08815647,3061.6,3060.0,0.4642]
[1763318817327,1.08815647,3061.5,3060.0,0.4642]
[1763318817822,1.08815647,3061.4,3060.0,0.4642]
[1763318817990,0.68115647,3061.3,3060.0,0.4642]
[1763318818224,1.08815647,3061.3,3060.0,0.4642]
[1763318818427,0.68115647,3061.2,3060.0,0.4642]
[1763318818921,0.407,3061.3,3060.0,0.4642]
[1763318818922,0.68115647,3061.3,3060.0,0.4642]
[1763318819109,2.15270262,3061.8,3060.0,0.4642]
[1763318819110,0.68115647,3061.4,3060.0,0.4642]
[1763318819307,0.68115647,3061.5,3060.1,1.1337408]
[1763318819556,0.68115647,3061.7,3060.2,0.88762993]
[1763318819717,0.68115647,3061.6,3060.3,0.4642]
[1763318820051,0.68115647,3061.5,3060.3,0.4642]
[1763318820356,0.68115647,3061.4,3060.3,0.4642]
[1763318820523,0.68115647,3061.6,3061.3,0.1893]
[1763318820724,0.85144559,3062.0,3060.9,0.1893]
[1763318820725,0.0978,3061.7,3060.9,0.1893]
[1763318820924,0.68481628,3061.6,3060.9,0.1893]
[1763318821123,0.0978,3061.7,3060.9,0.1893]
[1763318821331,0.78261628,3061.7,3060.9,0.1893]
[1763318821651,0.0978,3061.7,3060.9,0.6535]
[1763318822157,0.78261628,3061.7,3060.9,0.6535]
[1763318822311,0.0978,3061.7,3060.9,0.6535]
[1763318823547,0.78261628,3061.7,3060.9,0.6535]
[1763318823753,0.0978,3061.7,3059.7,11.5237408]
[1763318823919,0.0978,3061.7,3059.5,0.001]
[1763318823920,1.09181628,3061.6,3060.3,0.1893]
[1763318824125,0.85144559,3061.4,3059.9,0.001]
[1763318824370,0.85144559,3060.9,3059.9,0.001]
[1763318824564,0.0978,3060.0,3059.9,0.001]
[1763318824938,0.5048,3060.0,3059.9,0.001]
[1763318825145,1.18961628,3060.0,3059.9,0.001]
[1763318825448,1.48734222,3060.0,3059.9,0.001]
[1763318825863,2.33878781,3060.0,3059.9,0.001]
[1763318826064,1.48734222,3060.0,3059.9,0.001]
[1763318826237,3.20166697,3060.0,3059.9,0.001]
[1763318826442,2.63048853,3060.0,3059.9,0.001]
[1763318826858,1.48734222,3060.0,3059.9,0.001]
[1763318827385,2.63042709,3060.0,3059.9,0.001]
[1763318828482,1.48734222,3060.0,3059.9,0.001]
[1763318829286,2.03528378,3060.0,3059.9,0.001]
[1763318829510,2.68042709,3060.0,3059.9,0.001]
[1763318830359,2.67581743,3060.0,3059.9,0.001]
[1763318830570,2.96729354,3060.0,3059.9,0.001]
[1763318830775,0.05,3059.6,3059.5,0.001]
[1763318831083,0.05,3059.6,3059.2,0.001]
[1763318831084,9.38627354,3059.6,3059.2,0.001]
[1763318831307,0.05,3058.6,3055.1,0.1893]
[1763318831446,1.70747535,3059.3,3053.7,0.4642]
[1763318831447,0.05,3056.3,3053.7,0.4642]
[1763318831790,0.05,3056.3,3054.5,0.1893]
[1763318831791,0.85209295,3056.2,3054.5,0.1893]
[1763318832016,0.85209295,3056.2,3053.8,8.1535157]
[1763318832017,0.29772594,3056.1,3053.8,8.1535157]
[1763318832157,0.29772594,3056.1,3053.9,0.4642]
[1763318832158,0.85209295,3056.0,3053.9,0.4642]
[1763318832490,0.05,3055.5,3053.8,0.4642]
[1763318832657,0.5162,3055.9,3053.8,0.4642]
[1763318832995,0.1924,3055.4,3053.9,1.1337408]